fUST/lending_fUST_20260211
["ID","MTS","AMOUNT","RATE_DAILY","PERIOD"]
[405098692,1770805846362,-164.6458544,0.00033755,2]
[405098693,1770805846371,-200.0,0.00034,120]
[405098694,1770805846380,-212.0,0.00034013,120]
[405098695,1770805846389,-4637.80475465,0.00034232,2]
[405098696,1770805846398,-285.0,0.00034284,120]
[405098697,1770805846408,-642.51987789,0.00034774,7]
[405098698,1770805846418,-2902.789271,0.00034775,2]
[405098699,1770805846430,-6656.11472605,0.00034898,2]
[405098700,1770805846442,-5463.49966091,0.00034898,2]
[405098701,1770805846453,-2643.18,0.00034898,2]
[405098709,1770806738128,-150.0,0.00025376,2]
[405098710,1770806738151,-764.84233113,0.00025583,2]
[405098711,1770806738174,-1458.93925442,0.00027041,2]
[405098712,1770806738196,-177.0,0.00027376,2]
[405098713,1770806738217,-28.48410145,0.00027503,2]
[405098714,1770806833087,-2397.68646151,0.00024953,2]
[405098715,1770806848093,-2602.31353849,0.00024953,2]
[405098716,1770806848124,-777.02918926,0.00025583,2]
[405098717,1770806848150,-150.0,0.0002589,2]
[405098718,1770806848177,-181.29210734,0.00027039,2]
[405098735,1770806951098,-158.0,0.00024,3]
[405098736,1770806951121,-294.5,0.000249,2]
[405098737,1770806951144,-621.74752254,0.00024953,2]
[405098738,1770806953097,-364.26127985,0.00024953,2]
[405098739,1770806959078,-1303.59177741,0.00027039,2]
[405098740,1770806959096,-676.5740582,0.00027503,2]
[405098741,1770806959115,-177.0,0.0002789,2]
[405098742,1770806959133,-459.13185443,0.00028509,2]
[405098772,1770807038138,-161.41918928,0.00028509,2]
[405098780,1770807041226,-21.60895629,0.00028509,2]
[405098781,1770807041236,-478.39104371,0.00028511,2]
[405098782,1770807041276,-163.76895629,0.00028511,2]
[405098783,1770807041286,-300.0,0.00028886,2]
[405098784,1770807041296,-1200.0,0.00028886,2]
[405098785,1770807041306,-822.22334859,0.00028887,2]
[405098787,1770807046035,-276.87745749,0.00028887,2]
[405098788,1770807046047,-269.81128388,0.00028887,2]
[405098789,1770807046195,-642.23835154,0.00028887,2]
[405098790,1770807046209,-181.58813874,0.00028887,2]
[405098791,1770807046219,-242.74378812,0.000297,2]
[405098792,1770807046229,-204.0,0.0002989,2]
[405098793,1770807046239,-4724.66565498,0.00030091,2]
[405098798,1770807048279,-286.58507633,0.00030091,2]
[405098803,1770807130827,150.0,0.0002589,2]
[405098805,1770807408675,-745.00349604,0.00025583,2]
[405098806,1770807408705,-525.60938824,0.00026946,2]
[405098807,1770807408727,-745.00349604,0.00027046,2]
[405098808,1770807408739,-525.60938824,0.00027046,2]
[405098809,1770807408750,-146.09142844,0.00027046,2]
[405098814,1770808015975,3276.88,0.00030137,120]
[405098815,1770808025127,-150.0,0.00025394,2]
[405098816,1770808025149,-761.47227722,0.00025583,2]
[405098817,1770808025172,-1451.76473888,0.00027043,2]
[405098818,1770808025199,-1000.0,0.00027267,30]
[405098819,1770808025218,-300.0,0.00027282,2]
[405098820,1770808025238,-1200.0,0.00027283,2]
[405098821,1770808025259,-103.31570099,0.00027384,2]
[405098822,1770808151133,-150.0,0.0002589,2]
[405098823,1770808151153,-2509.5388704,0.00027284,2]
[405098824,1770808151174,-421.73927644,0.00027384,2]
[405098825,1770808151196,-177.0,0.0002789,2]
[405098826,1770808156157,-300.0,0.00028843,2]
[405098827,1770808156180,-279.0,0.00028843,2]
[405098828,1770808156200,-223.88197211,0.00028844,2]
[405098829,1770808156222,-500.0,0.00028844,2]
[405098830,1770808156240,-500.0,0.00028844,2]
[405098831,1770808156259,-500.0,0.00028844,2]
[405098832,1770808156279,-332.00837122,0.00028844,2]
[405098854,1770808232193,-151.0,0.00028827,2]
[405098855,1770808232203,-151.0,0.00028827,2]
[405098857,1770808232212,-151.0,0.00028827,2]
[405098859,1770808232221,-151.0,0.00028827,2]
[405098860,1770808232230,-151.0,0.00028827,2]
[405098862,1770808232240,-151.0,0.00028827,2]
[405098864,1770808232249,-151.0,0.00028827,2]
[405098866,1770808232259,-151.0,0.00028827,2]
[405098868,1770808232268,-151.0,0.00028827,2]
[405098870,1770808232277,-151.0,0.00028827,2]
[405098873,1770808232287,-151.0,0.00028827,2]
[405098876,1770808232296,-2.25,0.00028827,2]
[405098878,1770808232307,-148.75,0.00028827,2]
[405098879,1770808232316,-238.76,0.00028843,2]
[405098883,1770808232350,-61.24,0.00028843,2]
[405098885,1770808232359,-1200.0,0.00028843,2]
[405098887,1770808232369,-2654.55628135,0.00028845,2]
[405098971,1770808240469,-188.5834405,0.00028827,2]
[405098973,1770808240479,-500.0,0.00028844,2]
[405098975,1770808240488,-500.0,0.00028844,2]
[405098977,1770808240497,-500.0,0.00028844,2]
[405098979,1770808240507,-300.34239682,0.00028844,2]
[405098981,1770808240516,-36.65182193,0.00028844,2]
[405099148,1770808245332,-463.34817807,0.00028844,2]
[405099149,1770808245342,-640.66911756,0.00028844,2]
[405099150,1770808245352,-1364.31758372,0.00028845,2]
[405099180,1770808246401,-2197.53,0.00028845,2]
[405099191,1770808948514,303.10001603,0.000189,2]
[405099192,1770809142129,-176.16700705,0.0002475,2]
[405099193,1770809142150,-312.80804235,0.00025,2]
[405099195,1770809237070,-3085.14955819,0.00025,2]
[405099196,1770809237091,-150.0,0.00025252,2]
[405099197,1770809237113,-817.23067297,0.00025375,2]
[405099198,1770809237133,-300.0,0.00025492,2]
[405099199,1770809237153,-613.52687787,0.00025493,2]
[405099200,1770809237172,-340.84826548,0.00025493,2]
[405099201,1770809237192,-997.36775522,0.00025493,2]
[405099202,1770809246105,-93.34669432,0.00025493,2]
[405099203,1770809246125,-311.65330568,0.00025493,2]
[405099204,1770809263854,257.41729735,0.000209,2]
[405099205,1770809294457,278.43226922,0.00021,2]
[405099206,1770809297460,497.73313001,0.00013273,2]
[405099207,1770809304412,14752.54954712,0.0002,2]
[405099208,1770809307217,21451.59076063,0.0002,2]
[405099209,1770809309420,1394.34232469,0.0002061,2]
[405099213,1770809318653,1000.0,0.0002,2]
[405099214,1770809320225,2976.44586907,0.00021,2]
[405099216,1770809349094,-272.75745173,0.00024953,2]
[405099220,1770809351065,-300.0,0.00025492,2]
[405099221,1770809351087,-1392.58802173,0.00025493,2]
[405099222,1770809351112,-2454.10751146,0.00025493,2]
[405099223,1770809351136,-3340.31300171,0.00025493,2]
[405099224,1770809351157,-308.62330864,0.00025493,2]
[405099225,1770809351179,-555.52195556,0.00025493,2]
[405099226,1770809351198,-133.83710471,0.00025493,2]
[405099227,1770809353078,-853.75748295,0.00025493,2]
[405099228,1770809353099,-1543.11654322,0.00025493,2]
[405099229,1770809353119,-246.20860929,0.00026014,2]
[405099230,1770809370092,-150.0,0.0002561,2]
[405099231,1770809370113,-1692.6752675,0.00026014,2]
[405099232,1770809370132,-689.69025172,0.00026014,2]
[405099233,1770809370152,-793.46079759,0.00026015,2]
[405099234,1770809370171,-780.68494,0.00026448,2]
[405099235,1770809370192,-155.96679918,0.00026833,2]
[405099236,1770809370214,-265.8315827,0.00026833,2]
[405099237,1770809371091,-234.1684173,0.00026833,2]
[405099238,1770809371114,-500.0,0.00026833,2]
[405099239,1770809371135,-387.75273763,0.00026833,2]
[405099240,1770809371156,-500.0,0.00026833,2]
[405099241,1770809371178,-500.0,0.00026833,2]
[405099242,1770809371202,-500.0,0.00026833,2]
[405099243,1770809371225,-43.07066056,0.00026833,2]
[405099287,1770809438423,-836.28459743,0.00025583,2]
[405099288,1770809438433,-300.0,0.00026832,2]
[405099289,1770809438443,-201.0,0.00026832,2]
[405099290,1770809438453,-300.0,0.00026832,2]
[405099291,1770809438465,-151.0,0.00026848,2]
[405099292,1770809438475,-151.0,0.000269,2]
[405099293,1770809438486,-162.337583,0.000269,2]
[405099294,1770809438495,-1611.03285964,0.0002703,2]
[405099295,1770809438505,-600.0,0.0002737,30]
[405099296,1770809438515,-177.0,0.0002761,2]
[405099297,1770809438525,-154.18165399,0.00027775,2]
[405099298,1770809438535,-4235.7719111,0.00027949,2]
[405099299,1770809438544,-426.9912442,0.00027956,3]
[405099300,1770809438554,-188.5834405,0.00028032,2]
[405099301,1770809438564,-500.0,0.00028047,2]
[405099302,1770809438575,-500.0,0.00028047,2]
[405099303,1770809438584,-500.0,0.00028047,2]
[405099304,1770809438594,-351.43218853,0.00028047,2]
[405099305,1770809438605,-16.98158745,0.00028047,2]
[405099306,1770809438615,-310.11699241,0.00028047,2]
[405099307,1770809438624,-500.0,0.00028047,2]
[405099308,1770809438634,-562.03555401,0.00028047,2]
[405099309,1770809438644,-143.82169816,0.00028047,2]
[405099443,1770809441783,-313.10764128,0.00028047,2]
[405099445,1770809441793,-500.0,0.00028047,2]
[405099447,1770809441803,-500.0,0.00028047,2]
[405099449,1770809441812,-500.0,0.00028047,2]
[405099451,1770809441822,-5386.6267377,0.00028049,2]
[405099453,1770809441832,-7812.206677,0.00028049,2]
[405099456,1770809441843,-151.0,0.00028049,7]
[405099458,1770809441856,-151.0,0.00028049,7]
[405099460,1770809441865,-151.0,0.00028049,7]
[405099462,1770809441875,-151.0,0.00028049,7]
[405099464,1770809441884,-151.0,0.00028049,7]
[405099466,1770809441895,-151.0,0.00028049,7]
[405099467,1770809441904,-291.0263,0.00028049,7]
[405099469,1770809441913,-151.0,0.00028049,7]
[405099471,1770809441924,-151.0,0.00028049,7]
[405099474,1770809441936,-1194.0561829,0.00028049,2]
[405099476,1770809441945,-3613.1554794,0.00028049,2]
[405099478,1770809441954,-151.0,0.00028049,7]
[405099480,1770809441963,-151.0,0.00028049,7]
[405099482,1770809441973,-810.91230793,0.00028239,3]
[405099484,1770809441983,-151.0,0.00028239,7]
[405099486,1770809441993,-200.9200828,0.00028586,2]
[405099488,1770809442002,-229.62295177,0.00028586,2]
[405099490,1770809442012,-358.78586213,0.00028586,2]
[405099492,1770809442021,-221.73920877,0.00028743,2]
[405099493,1770809442031,-151.0,0.00028844,7]
[405099495,1770809442040,-151.0,0.00028844,7]
[405099497,1770809442050,-151.0,0.00028844,7]
[405099498,1770809442060,-160.789336,0.00028844,7]
[405099499,1770809442069,-151.0,0.00028844,7]
[405099500,1770809442080,-500.0,0.00028844,7]
[405099501,1770809442089,-1609.66642012,0.00028845,2]
[405099518,1770809445701,-637.45128243,0.00028845,2]
[405099529,1770809446628,-1536.47843238,0.00028845,2]
[405099531,1770809446638,-500.0,0.00028869,2]
[405099533,1770809446647,-213.30531208,0.00028869,2]
[405099535,1770809446657,-277.61598805,0.0002887,2]
[405099541,1770809540587,458.4935843,0.00013273,2]
[405099542,1770809556051,-1440.44984041,0.00024953,2]
[405099543,1770809556079,-162.02758645,0.00028247,2]
[405099544,1770809556098,-1440.44984041,0.0002887,2]
[405099545,1770809556109,-162.02758645,0.0002887,2]
[405099546,1770809556126,-505.68770694,0.0002887,2]
[405099547,1770809556138,-609.48,0.00028884,2]
[405099548,1770809556148,-492.50879846,0.00028884,5]
[405099549,1770809556159,-192.37471749,0.00028884,5]
[405099550,1770809585353,-458.4935843,0.00028182,2]
[405099552,1770809817690,403.34283424,0.00030136,120]
[405099553,1770809888804,158.28505577,0.00013699,2]
[405099556,1770810429132,-250.49153731,0.00025065,2]
[405099558,1770810446982,-486.53230542,0.00025065,2]
[405099559,1770810452086,-1865.28969576,0.00025065,2]
[405099560,1770810452108,-150.0,0.00025135,2]
[405099561,1770810452131,-1185.3759888,0.00025322,2]
[405099562,1770810452150,-705.6224479,0.00025419,2]
[405099563,1770810452172,-18.88266531,0.00025583,2]
[405099564,1770810452203,-779.84351026,0.00025583,2]
[405099565,1770810452223,-283.563719,0.00025649,30]
[405099566,1770810452247,-1174.0,0.00025655,2]
[405099567,1770810452268,-300.0,0.00025655,2]
[405099568,1770810452288,-8565.6456389,0.00025656,2]
[405099569,1770810452308,-6108.62819986,0.00026833,2]
[405099570,1770810452332,-249.78279594,0.00026833,5]
[405099571,1770810452351,-584.08,0.00026833,2]
[405099572,1770810452371,-307.62528251,0.00026833,5]
[405099573,1770810452392,-500.0,0.00026833,5]
[405099574,1770810452414,-500.0,0.00026981,2]
[405099575,1770810452436,-10585.02545623,0.00027,2]
[405099577,1770810552083,-621.74752254,0.00024953,2]
[405099578,1770810553094,-300.0,0.00026831,2]
[405099579,1770810553116,-2632.22779422,0.00026986,2]
[405099580,1770810556103,-1074.07262801,0.00026986,2]
[405099581,1770810556124,-9414.97454377,0.00027,2]
[405099582,1770810556144,-500.0,0.00027085,2]
[405099583,1770810556165,-500.0,0.00027085,2]
[405099584,1770810556186,-500.0,0.00027085,2]
[405099585,1770810556211,-312.23522138,0.00027085,2]
[405099586,1770810556236,-500.0,0.00027085,2]
[405099587,1770810556256,-1531.07464887,0.00027086,2]
[405099588,1770810556276,-177.0,0.00027135,2]
[405099589,1770810556298,-300.0,0.00027367,30]
[405099590,1770810556322,-200.0,0.00027397,2]
[405099591,1770810556349,-584.08,0.00028048,2]
[405099592,1770810556369,-500.0,0.00028048,5]
[405099593,1770810556391,-221.78314457,0.00028154,3]
[405099594,1770810556413,-1470.1032402,0.00028159,2]
[405099595,1770810556433,-994.9698738,0.00028182,2]
[405099596,1770810556452,-232.27,0.000282,2]
[405099597,1770810556474,-274.7046002,0.00028844,2]
[405099598,1770810556494,-313.94811451,0.00028844,2]
[405099599,1770810556513,-490.54392892,0.00028844,2]
[405099600,1770810556533,-396.422786,0.00028844,2]
[405099601,1770810556553,-188.68271656,0.00028844,2]
[405099602,1770810556572,-353.03931284,0.00028844,2]
[405099603,1770810556591,-339.62888981,0.00028844,2]
[405099604,1770810556613,-635.47076311,0.00028844,2]
[405099605,1770810556633,-603.78469299,0.00028844,2]
[405099606,1770810556652,-942.47016922,0.00028895,2]
[405099607,1770810556674,-2263.42312216,0.00028981,2]
[405099608,1770810556692,-420.0,0.00029012,2]
[405099609,1770810556712,-204.0,0.00029135,2]
[405099610,1770810556730,-3706.30042216,0.00029235,2]
[405099611,1770810556752,-600.0,0.0002942,30]
[405099612,1770810556773,-1129.72580108,0.00029485,2]
[405099613,1770810556793,-303.5990543,0.00029638,2]
[405099614,1770810556812,-477.65,0.00029818,2]
[405099615,1770810556834,-584.08,0.00029886,2]
[405099616,1770810556854,-403.39,0.0003,4]
[405099617,1770810556875,-572.92829634,0.0003,2]
[405099618,1770810556898,-636.29211667,0.0003009,2]
[405099619,1770810556920,-4911.0,0.00030091,2]
[405099620,1770810556941,-499.31371846,0.00030415,2]
[405099621,1770810556961,-1763.43136762,0.00030416,2]
[405099622,1770810556980,-150.0,0.00030642,2]
[405099623,1770810557002,-150.0,0.00030697,2]
[405099624,1770810557023,-150.0,0.00030752,2]
[405099625,1770810557042,-150.0,0.00030806,2]
[405099626,1770810557061,-159.77450229,0.00030861,2]
[405099627,1770810557082,-2995.77159545,0.00030876,2]
[405099628,1770810557102,-584.08,0.00030915,2]
[405099629,1770810557207,-231.0,0.00031135,2]
[405099630,1770810557234,-587.0,0.00031371,2]
[405099631,1770810557257,-3706.30042216,0.00031485,2]
[405099632,1770810557281,-160.47034575,0.00031642,2]
[405099633,1770810557304,-250.0,0.00031731,2]
[405099634,1770810557328,-265.30867804,0.00031731,2]
[405099635,1770810557349,-250.0,0.00031731,2]
[405099636,1770810557371,-257.97775712,0.00031731,2]
[405099637,1770810557391,-250.0,0.00031731,2]
[405099638,1770810557412,-250.0,0.00031731,2]
[405099639,1770810557434,-250.0,0.00031731,2]
[405099640,1770810557471,-250.0,0.00031731,2]
[405099641,1770810557497,-500.0,0.00031731,2]
[405099642,1770810557521,-250.0,0.00031731,2]
[405099643,1770810557545,-500.0,0.00031731,2]
[405099644,1770810557567,-500.0,0.00031731,2]
[405099645,1770810557589,-500.0,0.00031731,2]
[405099646,1770810557611,-500.0,0.00031731,2]
[405099647,1770810557634,-250.0,0.00031731,2]
[405099648,1770810557656,-500.0,0.00031731,2]
[405099649,1770810557680,-500.0,0.00031731,2]
[405099650,1770810557703,-250.0,0.00031731,2]
[405099651,1770810557727,-500.0,0.00031731,2]
[405099652,1770810557749,-500.0,0.00031731,2]
[405099653,1770810557777,-209.40437684,0.00031731,2]
[405099654,1770810557801,-250.0,0.00031731,2]
[405099655,1770810557823,-500.0,0.00031731,2]
[405099656,1770810557851,-500.0,0.00031731,2]
[405099657,1770810557883,-217.15233878,0.00031731,2]
[405099658,1770810557906,-250.0,0.00031731,2]
[405099659,1770810557928,-500.0,0.00031731,2]
[405099660,1770810557950,-500.0,0.00031731,2]
[405099661,1770810557978,-225.18697532,0.00031731,2]
[405099662,1770810558000,-500.0,0.00031731,2]
[405099663,1770810558021,-500.0,0.00031731,2]
[405099664,1770810558050,-233.51889341,0.00031731,2]
[405099665,1770810558071,-500.0,0.00031731,2]
[405099666,1770810558094,-500.0,0.00031731,2]
[405099667,1770810558123,-242.15909246,0.00031731,2]
[405099668,1770810558149,-250.0,0.00031731,2]
[405099669,1770810558173,-511.70606197,0.00031731,2]
[405099670,1770810558194,-500.0,0.00031731,2]
[405099671,1770810558215,-250.0,0.00031731,2]
[405099672,1770810558244,-251.11897888,0.00031731,2]
[405099673,1770810558265,-250.0,0.00031731,2]
[405099674,1770810558286,-250.0,0.00031731,2]
[405099675,1770810558310,-500.0,0.00031731,2]
[405099676,1770810558338,-199.95601571,0.00031731,2]
[405099677,1770810558359,-250.0,0.00031731,2]
[405099678,1770810558379,-250.0,0.00031731,2]
[405099679,1770810558399,-250.0,0.00031731,2]
[405099680,1770810558420,-250.0,0.00031731,2]
[405099681,1770810558442,-250.0,0.00031731,2]
[405099682,1770810558467,-250.0,0.00031731,2]
[405099683,1770810558492,-250.0,0.00031731,2]
[405099684,1770810558514,-250.0,0.00031731,2]
[405099685,1770810558534,-250.0,0.00031731,2]
[405099686,1770810558554,-250.0,0.00031731,2]
[405099687,1770810558574,-250.0,0.00031731,2]
[405099688,1770810558593,-250.0,0.00031731,2]
[405099689,1770810558615,-250.0,0.00031731,2]
[405099690,1770810558635,-250.0,0.00031731,2]
[405099691,1770810558656,-273.28855637,0.00031731,2]
[405099692,1770810558677,-324.0,0.00032,3]
[405099693,1770810558699,-681.337556,0.00032157,2]
[405099694,1770810558718,-200.0,0.00032334,120]
[405099695,1770810558740,-720.0,0.00032362,30]
[405099696,1770810558760,-179.8884188,0.00032425,2]
[405099697,1770810558782,-3728.12006875,0.00032771,2]
[405099698,1770810558804,-258.0,0.00033135,120]
[405099699,1770810558824,-8482.76376309,0.00033209,2]
[405099700,1770810558844,-8482.76376309,0.00033229,2]
[405099701,1770810558869,-24749.98,0.00033229,10]
[405099702,1770810558977,-584.08,0.00033239,2]
[405099703,1770810558997,-2007.15988958,0.00033239,2]
[405099704,1770810559018,-9000.0,0.00033239,2]
[405099705,1770810559038,-9000.0,0.00033239,2]
[405099706,1770810559058,-9000.0,0.00033239,2]
[405099707,1770810559078,-9000.0,0.00033239,2]
[405099708,1770810559098,-9049.19847095,0.00033239,2]
[405099709,1770810559119,-584.08,0.00033249,2]
[405099710,1770810559141,-584.08,0.00033269,2]
[405099711,1770810559163,-584.08,0.00033269,2]
[405099712,1770810559183,-480.68,0.00033269,3]
[405099713,1770810559203,-584.08,0.00033279,2]
[405099714,1770810559224,-8482.76376309,0.00033501,2]
[405099715,1770810559248,-681.337556,0.00033511,2]
[405099716,1770810559270,-207.72,0.00033511,2]
[405099717,1770810559290,-509.54,0.00033511,2]
[405099718,1770810559312,-500.0,0.00033563,7]
[405099719,1770810559334,-3706.30042216,0.00033734,2]
[405099720,1770810559354,-823.0,0.00033921,2]
[405099721,1770810559375,-168.0,0.00033941,2]
[405099722,1770810559395,-8482.76376309,0.0003398,2]
[405099723,1770810559414,-80663.78827311,0.0003399,2]
[405099724,1770810559435,-500.0,0.00033997,7]
[405099725,1770810559455,-584.08,0.00034004,2]
[405099726,1770810559477,-168.0,0.00034158,2]
[405099727,1770810559498,-325.95,0.000342,30]
[405099728,1770810559518,-584.08,0.00034308,2]
[405099729,1770810559539,-168.0,0.00034508,2]
[405099730,1770810559558,-961.36,0.00034639,3]
[405099731,1770810559578,-8482.76376309,0.00034656,2]
[405099732,1770810559599,-177.46159206,0.00034664,2]
[405099733,1770810559634,-4460.46854204,0.00034666,2]
[405099734,1770810559657,-168.0,0.00034675,2]
[405099735,1770810559678,-344.712,0.00034696,2]
[405099736,1770810559700,-2164.0,0.00034696,2]
[405099737,1770810559721,-633.0,0.00034696,2]
[405099738,1770810559742,-25557.61297498,0.000348,7]
[405099739,1770810559762,-742.38915205,0.000348,7]
[405099740,1770810559782,-681.337556,0.00034864,2]
[405099741,1770810559802,-584.08,0.00034887,2]
[405099742,1770810559823,-16965.5275262,0.00034888,2]
[405099743,1770810559843,-85329.02681933,0.00034898,2]
[405099744,1770810559864,-584.08,0.00034899,2]
[405099745,1770810559890,-8543.66,0.000349,14]
[405099746,1770810559913,-168.0,0.00034986,2]
[405099747,1770810559934,-500.0,0.00034986,5]
[405099748,1770810559956,-42413.8188155,0.0003499,2]
[405099749,1770810559979,-2977.86,0.00035,2]
[405099750,1770810560000,-10806.87625383,0.00035,2]
[405099751,1770810560020,-161083.01566131,0.00035,2]
[405099774,1770810632454,-250.0,0.00031731,2]
[405099776,1770810632463,-250.0,0.00031731,2]
[405099778,1770810632474,-250.0,0.00031731,2]
[405099779,1770810632483,-195.17221883,0.00031731,2]
[405099783,1770810632507,-54.82778117,0.00031731,2]
[405099785,1770810632516,-250.0,0.00031731,2]
[405099787,1770810632526,-250.0,0.00031731,2]
[405099789,1770810632535,-250.0,0.00031731,2]
[405099791,1770810632545,-500.0,0.00031731,2]
[405099793,1770810632554,-250.0,0.00031731,2]
[405099795,1770810632563,-119.49721883,0.00031731,2]
[405099812,1770810635957,150.0,0.0002589,2]
[405099814,1770810638619,-177.0,0.0002789,2]
[405099815,1770810638630,-204.0,0.0002989,2]
[405099816,1770810638640,-380.50278117,0.00031731,2]
[405099817,1770810638650,-249.99999803,0.00031731,2]
[405099818,1770810638659,-500.0,0.00031731,2]
[405099819,1770810638669,-500.0,0.00031731,2]
[405099820,1770810638679,-231.0,0.0003189,2]
[405099821,1770810638689,-290.67826076,0.00033154,2]
[405099822,1770810638698,-240.34,0.00033491,3]
[405099823,1770810638708,-294.5,0.000335,5]
[405099824,1770810638718,-258.0,0.0003389,120]
[405099825,1770810638727,-480.68,0.00034861,3]
[405099826,1770810638737,-673.43834698,0.000349,120]
[405099827,1770810638929,-9.56976483,0.000349,120]
[405099828,1770810638939,-270.0,0.00034999,2]
[405099829,1770810638949,-349.51960292,0.00034999,7]
[405099830,1770810638959,-2847.37669922,0.00035,2]
[405099831,1770810638971,-256.78783705,0.00035,2]
[405099848,1770810640774,-442.58507751,0.00035,2]
[405100037,1770810645678,-54.38758807,0.00035,2]
[405100038,1770810645691,-21553.6372,0.00035,2]
[405100044,1770810646716,-1174.08504371,0.00035,2]
[405100045,1770810646727,-4561.08355146,0.00035,2]
[405100046,1770810646737,-2193.19,0.00035,14]
[405100047,1770810646747,-487.0,0.00035,2]
[405100048,1770810646756,-487.0,0.00035,2]
[405100049,1770810646766,-487.0,0.00035,2]
[405100050,1770810646775,-487.0,0.00035,2]
[405100051,1770810646785,-487.0,0.00035,2]
[405100052,1770810646794,-487.0,0.00035,2]
[405100053,1770810646803,-487.0,0.00035,2]
[405100054,1770810646815,-487.0,0.00035,2]
[405100055,1770810646824,-920.13,0.00035,2]
[405100056,1770810646834,-1000.0,0.00035103,15]
[405100057,1770810646843,-500.0,0.0003518,30]
[405100058,1770810646853,-497.13011682,0.0003526,5]
[405100059,1770810914443,162.48620884,0.00021918,2]
[405100060,1770810916027,397.36084111,0.00021317,2]
[405100061,1770810916433,397.36084111,0.0002185,2]
[405100062,1770810988152,-478.39104371,0.00025583,2]
[405100063,1770811013671,1582.7,0.00030137,120]
[405100064,1770811040844,158.0,0.0002,3]
[405100065,1770811205639,7014.11471832,0.00020096,2]
[405100067,1770811537130,-185.92778432,0.00024763,2]
[405100068,1770811572547,150.0,0.00021918,2]
[405100069,1770811572579,300.0,0.00022466,2]
[405100071,1770811625097,-232.27,0.000247,2]
[405100072,1770811625119,-178.33349553,0.00024763,2]
[405100073,1770811625141,-150.0,0.00024949,2]
[405100074,1770811625162,-667.94384058,0.00025134,2]
[405100075,1770811625182,-1127.16331266,0.00026336,2]
[405100076,1770811625205,-177.0,0.00026949,2]
[405100077,1770811625227,-500.0,0.00026999,2]
[405100078,1770811625247,-500.0,0.00027085,2]
[405100079,1770811625266,-500.0,0.00027397,5]
[405100080,1770811625286,-155.04353192,0.00027397,5]
[405100081,1770811625308,-1586.38278473,0.00027914,2]
[405100082,1770811625328,-300.0,0.00027944,2]
[405100083,1770811625348,-503.67530563,0.00027945,5]
[405100084,1770811625368,-300.0,0.00028076,2]
[405100085,1770811625480,-456.00818933,0.00028077,2]
[405100086,1770811625500,-1200.0,0.00028344,2]
[405100087,1770811625522,-204.0,0.00028949,2]
[405100088,1770811625542,-500.0,0.00029231,2]
[405100089,1770811625566,-2045.60225681,0.00029492,2]
[405100090,1770811625585,-205.65,0.0003,30]
[405100091,1770811625608,-420.0,0.00030181,2]
[405100092,1770811625639,-1200.0,0.00030733,2]
[405100093,1770811625673,-231.0,0.00030949,2]
[405100094,1770811625695,-2504.82172889,0.0003107,2]
[405100095,1770811625716,-340.90403161,0.00031369,2]
[405100096,1770811625736,-500.0,0.0003148,2]
[405100097,1770811625758,-500.0,0.0003148,2]
[405100098,1770811625779,-500.0,0.0003148,2]
[405100099,1770811625799,-500.0,0.0003148,2]
[405100100,1770811625820,-223.88197211,0.0003148,2]
[405100101,1770811625840,-500.0,0.0003148,2]
[405100102,1770811625863,-429.81923334,0.0003148,2]
[405100103,1770811625883,-500.0,0.00031481,2]
[405100104,1770811625903,-200.0,0.00032334,120]
[405100105,1770811625923,-587.0,0.00032598,2]
[405100106,1770811625944,-2964.04120097,0.00032648,2]